bitfinex-derivatives/quotes_ETHF0:USTF0_20250917
["timestamp","ask_amount","ask_price","bid_price","bid_amount"]
[1758081600263,0.225,4499.9,4499.1,0.94868366]
[1758081601152,0.225,4500.4,4499.8,0.94868366]
[1758081601356,0.55942008,4500.3,4499.8,0.94868366]
[1758081601553,0.225,4500.3,4499.8,0.94868366]
[1758081601762,0.94868366,4501.4,4500.1,0.94868366]
[1758081601962,1.00665359,4501.3,4500.1,0.94868366]
[1758081602261,41.35946358,4501.2,4500.1,0.94868366]
[1758081602456,1.50814724,4501.1,4500.1,0.94868366]
[1758081602658,0.55946358,4501.0,4500.1,0.94868366]
[1758081602856,0.55946358,4500.9,4500.1,0.94868366]
[1758081603054,0.55946358,4500.8,4500.1,0.94868366]
[1758081603364,0.94868366,4501.1,4500.1,0.94868366]
[1758081603565,0.55942706,4501.0,4499.8,0.94868366]
[1758081603765,0.55942706,4501.0,4498.9,0.0222]
[1758081603766,0.94868366,4499.9,4498.9,0.0222]
[1758081604463,0.225,4500.1,4499.0,0.94868366]
[1758081604964,1.78547488,4501.5,4499.9,0.94868366]
[1758081604965,0.225,4500.5,4499.9,0.94868366]
[1758081605263,0.225,4500.5,4498.9,0.0222]
[1758081605264,0.55940507,4500.4,4499.3,0.94868366]
[1758081605454,0.225,4500.5,4499.3,0.94868366]
[1758081605659,0.55940648,4500.4,4499.4,0.22223]
[1758081605863,0.225,4500.5,4499.3,0.94868366]
[1758081606064,0.55940649,4500.4,4499.3,0.94868366]
[1758081606264,0.94868366,4500.6,4499.3,0.94868366]
[1758081606465,0.55942958,4500.5,4499.3,0.94868366]
[1758081606661,0.55942958,4500.4,4499.3,0.94868366]
[1758081606861,1.17368366,4500.6,4499.3,0.94868366]
[1758081607063,0.55942958,4500.5,4499.3,0.94868366]
[1758081607264,0.55942958,4500.4,4499.3,0.94868366]
[1758081607465,1.17368366,4500.6,4499.6,0.94868366]
[1758081607665,0.55874507,4500.5,4499.6,0.94868366]
[1758081607962,0.94868366,4500.6,4499.6,0.94868366]
[1758081608162,0.55874666,4500.5,4499.6,0.94868366]
[1758081608362,0.94868366,4500.6,4499.6,0.94868366]
[1758081608666,0.5587814,4500.5,4499.6,0.94868366]
[1758081608861,1.17368366,4500.7,4499.6,0.94868366]
[1758081609061,0.55878141,4500.6,4499.6,0.94868366]
[1758081609261,0.225,4500.7,4500.3,0.94868366]
[1758081609461,0.225,4500.7,4499.9,0.94868366]
[1758081610157,0.94868366,4500.8,4499.6,0.94868366]
[1758081610670,0.225,4500.9,4499.6,0.94868366]
[1758081610967,0.94868366,4500.8,4499.6,0.94868366]
[1758081611865,1.17368366,4500.9,4499.6,0.94868366]
[1758081612664,0.5589064,4500.8,4499.6,0.94868366]
[1758081612865,1.17368366,4500.9,4499.6,0.94868366]
[1758081613465,1.17368366,4500.9,4499.7,0.0222]
[1758081614961,0.94868366,4500.6,4499.7,0.0222]
[1758081615166,0.94868366,4500.2,4499.7,0.0222]
[1758081617064,0.94868366,4499.8,4499.7,0.0222]
[1758081617464,0.94868366,4499.8,4498.6,0.94868366]
[1758081617665,0.94868366,4499.8,4498.7,0.22225999]
[1758081617965,0.94868366,4500.1,4498.9,0.94868366]
[1758081618165,40.8,4500.0,4498.9,0.94868366]
[1758081618363,0.94868366,4500.1,4498.9,1.17093366]
[1758081618760,41.74868366,4500.1,4498.9,1.17093366]
[1758081618963,41.74868366,4500.1,4498.9,0.94868366]
[1758081619167,40.8,4500.1,4499.8,0.94868366]
[1758081619363,0.225,4500.3,4499.5,0.94868366]
[1758081620058,40.8,4500.7,4499.5,0.94868366]
[1758081620254,0.55892534,4500.6,4499.5,0.94868366]
[1758081620461,0.55892534,4500.5,4499.5,0.94868366]
[1758081620668,0.55892534,4500.4,4499.5,0.94868366]
[1758081620967,41.025,4500.7,4499.5,0.94868366]
[1758081621266,0.55892072,4500.6,4499.6,0.0222]
[1758081621467,0.55892072,4500.5,4499.8,0.94868366]
[1758081621763,40.8,4500.7,4499.8,0.94868366]
[1758081622466,0.225,4500.8,4499.8,0.94868366]
[1758081622767,0.94868366,4501.1,4500.1,0.94868366]
[1758081622964,0.78398137,4501.0,4500.1,0.94868366]
[1758081623265,0.55898137,4500.9,4500.1,0.94868366]
[1758081623869,0.55898137,4500.9,4500.4,0.79001888]
[1758081625365,0.79001888,4501.0,4500.4,0.79001888]
[1758081625566,0.55885303,4500.9,4500.4,0.79001888]
[1758081625768,0.79001888,4501.0,4500.4,0.79001888]
[1758081626063,1.01501888,4501.0,4500.4,0.79001888]
[1758081626473,0.79001888,4501.0,4500.4,0.79001888]
[1758081628468,32.011,4501.6,4500.4,0.79001888]
[1758081628669,0.79001888,4500.9,4500.4,0.79001888]
[1758081629465,0.79001888,4500.9,4499.6,0.0222]
[1758081629667,0.79001888,4500.6,4500.1,0.79001888]
[1758081629970,0.79001888,4500.7,4500.1,0.79001888]
[1758081630172,0.225,4501.0,4500.1,0.79001888]
[1758081630368,0.79001888,4500.8,4500.1,0.79001888]
[1758081631174,0.01501888,4500.9,4500.4,0.79001888]
[1758081631968,40.8,4501.3,4500.7,0.79001888]
[1758081632273,32.011,4501.6,4500.0,0.79001888]
[1758081632274,32.011,4501.6,4501.2,0.79001888]
[1758081632468,0.55876676,4501.5,4501.0,0.79001888]
[1758081632769,0.225,4501.4,4501.0,0.79001888]
[1758081633367,0.79001888,4501.5,4501.1,0.0222]
[1758081633561,0.225,4501.3,4501.1,0.0222]
[1758081634870,32.011,4501.6,4501.1,0.0222]
[1758081635070,32.011,4501.6,4501.3,0.79001888]
[1758081635273,1.73594446,4502.5,4501.3,0.79001888]
[1758081635567,0.79001888,4501.5,4501.1,0.0222]
[1758081636671,1.19191888,4501.5,4501.4,0.2088]
[1758081636868,1.19191888,4501.5,4501.4,0.5279]
[1758081637067,0.4019,4501.5,4501.4,0.5279]
[1758081637270,0.7071,4501.5,4501.4,0.5279]
[1758081638565,0.7071,4501.5,4501.4,0.732]
[1758081638875,0.4019,4501.5,4501.4,0.732]
[1758081639075,0.7071,4501.5,4501.4,0.732]
[1758081640772,0.1995,4501.5,4501.4,0.732]
[1758081640973,0.225,4501.6,4501.5,0.1207]
[1758081641173,0.4245,4501.6,4501.5,0.8527]
[1758081642279,0.9321,4501.6,4501.5,0.5279]
[1758081642574,0.7071,4501.6,4501.2,0.3191]
[1758081642880,0.7071,4501.2,4501.1,0.231]
[1758081643084,0.7071,4501.2,4501.1,0.0222]
[1758081643280,0.7071,4501.2,4500.5,0.91071888]
[1758081643478,0.1995,4500.6,4500.5,1.32361888]
[1758081643679,0.1995,4500.6,4500.5,1.64271888]
[1758081644079,0.4019,4500.6,4500.5,0.8527]
[1758081644386,0.7071,4500.6,4500.5,0.732]
[1758081645280,0.7071,4500.6,4500.5,0.8527]
[1758081646481,0.7071,4500.6,4500.5,1.64271888]
[1758081646674,0.4019,4500.6,4500.5,1.64271888]
[1758081647185,0.1995,4500.6,4500.5,1.64271888]
[1758081647483,0.3052,4500.9,4500.5,1.64271888]
[1758081647680,0.7071,4500.9,4500.8,0.732]
[1758081648986,0.4019,4500.9,4500.8,0.732]
[1758081649374,0.7071,4500.9,4500.8,0.732]
[1758081649683,0.7071,4500.9,4500.8,0.5279]
[1758081650187,0.3052,4500.8,4500.5,0.1207]
[1758081650389,0.4019,4500.7,4500.6,0.5279]
[1758081650683,0.7071,4500.7,4500.6,0.732]
[1758081650985,0.4019,4500.7,4500.6,0.732]
[1758081651882,0.3052,4501.0,4500.6,0.732]
[1758081652187,0.9321,4501.3,4501.2,0.5279]
[1758081652983,0.4019,4500.8,4500.7,0.2088]
[1758081653189,0.7071,4500.8,4500.7,0.5279]
[1758081655391,0.7071,4500.8,4500.7,0.732]
[1758081655688,0.4019,4500.8,4500.7,0.732]
[1758081655883,0.4019,4500.8,4500.7,1.52201888]
[1758081656483,0.79001888,4501.2,4500.7,1.20291888]
[1758081656788,0.7214,4501.8,4501.7,0.7237]
[1758081657090,1.50432503,4501.8,4501.7,0.7237]
[1758081657693,1.27932503,4501.8,4501.7,0.7237]
[1758081657893,1.50332503,4501.8,4501.7,0.7237]
[1758081660492,0.4284,4501.8,4501.7,0.7237]
[1758081660792,0.9363,4501.8,4501.7,0.7237]
[1758081662182,0.7123,4501.8,4501.7,0.7237]
[1758081663391,0.4091,4501.8,4501.7,0.7237]
[1758081663594,0.2044,4501.8,4501.7,0.7237]
[1758081663795,32.7133,4502.4,4502.3,0.214]
[1758081664088,33.27106493,4502.4,4502.3,0.7271]
[1758081664289,33.49506493,4502.4,4502.3,0.7271]
[1758081665093,33.49506493,4502.4,4502.1,0.3039]
[1758081665286,1.50331888,4502.2,4502.1,0.3039]
[1758081665488,0.2054,4502.2,4502.1,0.7271]
[1758081665689,0.7133,4502.2,4502.1,0.7271]
[1758081665982,0.4101,4502.2,4502.1,0.7271]
[1758081666392,0.7133,4502.2,4502.1,0.7271]
[1758081667388,1.50331888,4502.2,4501.5,0.1277]
[1758081667594,0.79001888,4501.9,4501.8,0.214]
[1758081667886,1.20011888,4501.9,4501.8,0.5179]
[1758081668090,1.50331888,4501.9,4501.8,0.5179]
[1758081669692,0.7133,4501.9,4501.8,0.7271]
[1758081670092,0.224,4502.2,4501.9,0.3039]
[1758081670400,0.9373,4502.2,4502.1,0.7271]
[1758081671300,0.9373,4502.2,4502.1,0.5179]
[1758081671601,0.2054,4501.8,4501.7,1.21321888]
[1758081672100,0.2054,4501.8,4501.7,1.51711888]
[1758081672295,0.224,4502.2,4501.7,1.51711888]
[1758081672493,0.7326,4502.2,4502.1,0.4232]
[1758081672698,0.9373,4502.2,4502.1,0.7271]
[1758081676409,0.7133,4502.2,4502.1,0.7271]
[1758081676613,0.6341,4502.2,4502.1,0.7271]
[1758081678108,0.9373,4502.2,4502.1,0.7271]
[1758081682816,0.4294,4502.2,4502.1,0.7271]
[1758081684316,0.2054,4502.2,4502.1,0.7271]
[1758081684512,0.4294,4502.2,4502.1,0.7271]
[1758081684712,0.2054,4502.2,4502.1,0.7271]
[1758081684918,0.2054,4502.7,4502.6,0.5131]
[1758081685218,0.4294,4502.7,4502.6,0.7271]
[1758081685519,0.9373,4502.7,4502.6,0.7271]
[1758081685916,0.6341,4502.7,4502.6,0.7271]
[1758081686116,0.224,4502.7,4502.6,0.7271]
[1758081686308,1.77832877,4503.1,4502.7,0.3039]
[1758081686508,0.78096045,4503.0,4502.8,0.4232]
[1758081686713,0.76236045,4502.9,4502.8,0.4232]
[1758081686914,1.27026045,4502.9,4502.8,0.4232]
[1758081687113,1.49426045,4502.9,4502.8,0.4232]
[1758081687314,1.49426045,4502.9,4502.8,0.7271]
[1758081687514,0.78096045,4502.9,4502.8,0.7271]
[1758081687916,0.98636045,4502.9,4502.8,0.7271]
[1758081688620,1.50356045,4502.9,4502.8,0.7271]
[1758081690517,1.27956045,4502.9,4502.8,0.7271]
[1758081690723,1.50356045,4502.9,4502.8,0.7271]
[1758081691126,0.9466,4502.9,4502.8,0.7271]
[1758081692625,0.2054,4502.9,4502.8,0.7271]
[1758081693225,0.4294,4502.9,4502.8,0.7271]
[1758081693619,0.224,4502.9,4502.8,0.7271]
[1758081693820,31.994,4503.5,4502.8,0.4232]
[1758081694125,1.50123878,4503.4,4503.3,0.5106]
[1758081694325,1.18063878,4503.4,4503.3,0.7201]
[1758081695025,0.7197,4504.5,4504.4,0.5106]
[1758081695225,1.27719472,4504.5,4504.4,0.3046]
[1758081695527,0.3991,4503.2,4503.1,0.7201]
[1758081695724,0.3991,4503.2,4503.1,0.94214]
[1758081695928,0.3991,4503.2,4503.1,0.7201]
[1758081696620,0.224,4503.7,4503.2,0.3046]
[1758081696929,0.9437,4503.7,4503.6,0.7201]
[1758081697523,0.6231,4503.7,4503.6,0.7201]
[1758081697918,0.9437,4503.7,4503.6,0.7201]
[1758081700433,0.6231,4503.7,4503.6,0.7201]
[1758081700633,0.4265,4503.7,4503.6,0.7201]
[1758081700829,0.9437,4503.7,4503.6,0.5106]
[1758081703934,0.9437,4503.7,4503.1,0.3046]
[1758081707734,0.3991,4503.6,4503.5,0.206]
[1758081707936,0.7197,4503.6,4503.5,0.206]
[1758081708127,0.7197,4503.6,4503.5,0.5106]
[1758081709241,0.7197,4503.6,4503.5,0.3046]
[1758081709437,0.3206,4503.5,4503.1,0.94742706]
[1758081709635,0.7197,4503.3,4503.2,0.5106]
[1758081709941,0.7197,4503.3,4503.2,0.7423]
[1758081712335,0.3206,4503.9,4503.3,0.3046]
[1758081712536,1.16574001,4503.9,4503.3,0.3046]
[1758081712741,0.9437,4503.9,4503.3,0.3046]
[1758081712938,0.3206,4503.3,4503.2,0.0222]
[1758081713138,0.9437,4503.3,4503.2,0.0222]
[1758081713335,0.9437,4503.3,4502.7,0.3046]
[1758081713531,0.3991,4502.8,4502.7,0.3046]
[1758081713835,0.7197,4502.3,4502.2,0.7201]
[1758081715337,0.7197,4502.3,4502.2,0.3046]
[1758081715535,0.7197,4502.3,4501.7,0.3004]
[1758081715536,0.3991,4502.3,4501.7,0.3004]
[1758081715741,0.207,4501.8,4501.7,0.5059]
[1758081715944,0.207,4501.8,4501.7,0.7001]
[1758081718047,0.3364,4502.5,4501.7,0.7001]
[1758081718238,0.3086,4502.4,4501.8,0.3155]
[1758081718745,0.4045,4502.4,4501.7,0.3155]
[1758081718946,0.3111,4502.3,4501.7,0.3155]
[1758081719148,0.7156,4501.8,4501.7,0.7365]
[1758081720248,0.7156,4501.8,4501.7,0.5217]
[1758081720447,0.7156,4501.8,4501.5,0.3377]
[1758081721343,0.7156,4501.6,4501.5,0.0222]
[1758081721745,0.4045,4500.9,4500.8,0.5217]
[1758081721948,0.7156,4500.9,4500.8,0.7365]
[1758081722245,0.7156,4500.9,4500.8,0.5217]
[1758081722844,0.7156,4500.9,4500.6,0.3155]
[1758081724046,0.3111,4500.8,4500.5,0.4398]
[1758081724245,0.5108,4500.8,4500.7,0.7365]
[1758081724438,0.1997,4500.8,4500.7,0.7365]
[1758081724845,0.4045,4500.8,4500.7,0.7365]
[1758081725047,0.7156,4500.8,4500.7,0.7365]
[1758081725647,0.7156,4500.8,4500.5,0.0222]
[1758081725946,0.4045,4500.8,4500.5,0.0222]
[1758081726148,0.7156,4500.7,4500.5,0.3377]
[1758081726341,0.7156,4500.7,4500.5,0.0222]
[1758081728146,0.7156,4499.9,4499.8,0.5217]
[1758081729851,0.7156,4499.9,4499.8,0.7365]
[1758081733156,0.7156,4499.9,4499.8,0.3155]
[1758081733457,0.7156,4499.9,4499.6,0.3155]
[1758081733654,0.7156,4499.9,4499.5,0.1243]
[1758081734054,0.7156,4499.9,4499.6,0.3155]
[1758081734654,0.7156,4499.9,4499.0,1.09392706]
[1758081734860,0.7156,4499.9,4499.7,0.3155]
[1758081735061,41.0048,4499.8,4499.7,0.5217]
[1758081735261,41.5156,4499.8,4499.7,0.5217]
[1758081739360,0.4045,4499.3,4499.2,0.5217]
[1758081739555,0.7156,4499.3,4499.2,0.5217]
[1758081740870,0.7156,4499.3,4499.2,0.7365]
[1758081741268,0.7156,4499.3,4498.6,0.3155]
[1758081745775,0.7156,4499.3,4498.8,0.790649]
[1758081745970,0.4045,4499.0,4498.9,0.5217]
[1758081746174,0.9396,4499.0,4498.9,0.5217]
[1758081746777,0.9396,4499.0,4498.9,0.3155]
[1758081747079,0.7156,4498.6,4498.5,1.436649]
[1758081747470,0.7156,4498.6,4498.5,1.651449]
[1758081748579,0.4045,4498.6,4498.5,1.651449]
[1758081748982,0.7204,4498.6,4498.5,0.8608]
[1758081749183,0.7204,4498.6,4498.5,1.651449]
[1758081750380,0.4045,4498.6,4498.5,1.651449]
[1758081750690,0.3159,4498.9,4498.5,1.651449]
[1758081750885,0.5195,4498.9,4498.8,1.515349]
[1758081751178,0.4276,4498.9,4498.8,1.515349]
[1758081751575,0.98430706,4498.9,4498.8,1.515349]
[1758081751774,1.49480706,4498.9,4498.8,1.515349]
[1758081752683,1.27080706,4498.9,4498.8,1.515349]
[1758081752879,1.49480706,4498.9,4498.8,1.515349]
[1758081754185,1.17890706,4498.9,4498.8,1.515349]
[1758081754685,1.49480706,4498.9,4498.8,1.515349]
[1758081756679,0.55670706,4498.9,4498.8,1.515349]
[1758081757578,0.224,4499.2,4499.1,0.4194]
[1758081757774,0.55326633,4499.7,4499.5,0.1224]
[1758081757978,0.77727737,4499.6,4499.5,1.332449]
[1758081758179,0.98087737,4499.6,4499.5,1.332449]
[1758081758585,0.98087737,4499.6,4499.5,1.637749]
[1758081759389,0.75687737,4499.6,4499.5,1.637749]
[1758081759687,0.98087737,4499.6,4499.5,1.637749]
[1758081760187,0.98087737,4499.6,4499.5,0.8471]
[1758081760384,1.17547737,4499.6,4499.5,0.8471]
[1758081760586,0.7141,4499.2,4499.1,0.3053]
[1758081760889,0.3982,4498.7,4498.6,0.7247]
[1758081761082,0.7141,4498.7,4498.6,0.7247]
[1758081761289,1.26737737,4498.7,4498.6,0.7247]
[1758081761589,0.95147737,4498.7,4498.6,0.7247]
[1758081762088,1.26737737,4498.7,4498.6,0.7247]
[1758081763685,0.95147737,4498.7,4498.6,0.7247]
[1758081764586,1.26737737,4498.7,4498.6,0.7247]
[1758081767493,0.55327737,4498.7,4498.6,0.7247]
[1758081768293,0.224,4498.9,4498.7,0.7247]
[1758081768500,0.55417519,4498.8,4498.7,0.7247]
[1758081768691,0.75777519,4498.8,4498.7,1.515349]
[1758081769999,0.55417519,4498.8,4498.7,1.515349]
[1758081770201,0.224,4499.0,4498.8,0.3053]
[1758081770393,0.224,4499.0,4498.9,0.7247]
[1758081770589,0.77835783,4499.0,4498.9,0.7247]
[1758081770799,0.98195783,4499.0,4498.9,0.7247]
[1758081771301,0.4276,4499.0,4498.9,0.7247]
[1758081771998,0.4276,4499.0,4498.9,1.515349]
[1758081772598,0.7141,4499.0,4498.9,1.515349]
[1758081775395,0.3982,4499.0,4498.9,1.515349]
[1758081775789,0.2036,4499.0,4498.9,1.515349]
[1758081776196,0.4189,4499.7,4499.6,0.7258]
[1758081776396,0.98891504,4499.7,4499.6,1.516449]
[1758081779495,1.30751504,4499.7,4499.6,1.516449]
[1758081779697,1.30751504,4499.7,4499.6,0.7258]
[1758081780201,1.51271504,4499.7,4499.6,0.7258]
[1758081782900,1.19411504,4499.7,4499.6,1.516449]
[1758081783094,0.97011504,4499.7,4499.6,1.516449]
[1758081783295,0.790649,4500.1,4499.6,1.516449]
[1758081783600,32.015,4500.3,4500.1,0.3198]
[1758081783899,32.015,4500.3,4500.2,1.532649]
[1758081783900,32.2271,4500.3,4500.2,1.532649]
[1758081784300,32.9749,4500.3,4500.2,1.532649]
[1758081785301,33.765549,4500.3,4500.2,0.3198]
[1758081785607,34.3194257,4500.3,4499.6,0.3198]
[1758081785806,0.7359,4499.7,4499.6,0.742]
[1758081786006,0.9599,4499.7,4499.6,0.742]
[1758081786808,0.6413,4499.7,4499.6,0.742]
[1758081787007,0.9599,4499.7,4499.6,0.5337]
[1758081791807,32.015,4500.3,4499.7,0.3198]
[1758081792106,32.015,4500.3,4500.2,1.532649]
[1758081792400,32.239,4500.3,4500.2,1.532649]
[1758081792604,32.4511,4500.3,4500.2,1.532649]
[1758081793110,32.9749,4500.3,4500.2,0.742]
[1758081794701,32.9749,4500.3,4499.6,0.3198]
[1758081795013,0.7359,4499.7,4499.6,0.742]
[1758081795307,0.9599,4499.7,4499.6,0.742]
[1758081796902,0.6413,4499.7,4499.6,0.742]
[1758081797208,0.224,4499.7,4499.6,0.742]
[1758081797412,32.4323,4500.3,4500.2,0.2139]
[1758081797610,32.9749,4500.3,4500.2,0.5337]
[1758081798700,32.9749,4500.3,4500.2,0.742]
[1758081799400,32.6563,4500.3,4500.2,0.742]
[1758081799604,32.2271,4500.3,4500.2,0.742]
[1758081799810,32.4511,4500.3,4500.2,0.742]
[1758081801606,0.4361,4500.3,4500.2,0.742]
[1758081801909,0.9599,4500.3,4500.2,0.742]
[1758081803909,0.7359,4500.3,4500.2,0.742]
[1758081804210,0.4361,4500.3,4500.2,0.742]
[1758081804812,0.9599,4500.3,4500.2,0.742]
[1758081805012,0.7359,4500.3,4500.2,0.742]
[1758081805210,0.9599,4500.3,4500.2,0.742]
[1758081807010,0.9599,4500.3,4499.6,0.3198]
[1758081807308,0.4173,4500.0,4499.9,0.742]
[1758081807506,0.7359,4500.0,4499.9,0.742]
[1758081809808,0.4173,4500.0,4499.9,0.742]
[1758081810005,0.2121,4500.0,4499.9,1.69032448]
[1758081810418,0.224,4500.2,4500.1,0.7202]
[1758081810717,0.4347,4500.2,4500.1,0.7202]
[1758081811418,40.8,4500.9,4500.1,0.7202]
[1758081811419,0.2982,4500.8,4500.2,0.3224]
[1758081811619,1.48622944,4500.7,4500.6,0.7202]
[1758081813516,1.26222944,4500.7,4500.6,0.7202]
[1758081813813,1.48622944,4500.7,4500.6,0.7202]
[1758081815721,1.26222944,4500.7,4500.6,0.7202]
[1758081815916,1.48622944,4500.7,4500.6,0.7202]
[1758081816119,0.98762944,4500.7,4500.6,0.7202]
[1758081816517,0.4347,4500.7,4500.6,0.7202]
[1758081817818,0.7329,4500.7,4500.6,0.7202]
[1758081818018,0.9333,4500.7,4500.6,0.7202]
[1758081818423,0.7093,4500.7,4500.6,0.7202]
[1758081818623,0.4347,4500.7,4500.6,0.3978]
[1758081819124,0.4347,4500.7,4500.6,0.7202]
[1758081819420,0.224,4500.7,4500.6,0.7202]
[1758081819725,0.2982,4501.0,4500.6,0.3978]
[1758081819925,0.77701168,4500.9,4500.7,0.3224]
[1758081820226,0.2107,4500.9,4500.8,0.7202]
[1758081820415,0.4347,4500.9,4500.8,0.7202]
[1758081820614,0.98777841,4500.9,4500.8,0.7202]
[1758081820829,0.2982,4501.3,4500.8,1.66852448]
[1758081821028,0.94832448,4502.4,4501.5,0.5231]
[1758081821029,32.7183,4501.6,4501.5,0.5231]
[1758081821225,33.49544595,4501.6,4501.5,0.5231]
[1758081821926,35.2360005,4501.6,4501.5,0.7202]
[1758081822128,34.9378005,4501.6,4501.5,0.8406]
[1758081822530,35.2360005,4501.6,4501.5,0.8406]
[1758081823330,34.68285455,4501.6,4501.5,0.8406]
[1758081823932,32.9423,4501.6,4501.5,0.8406]
[1758081824825,1.73511015,4501.9,4501.5,1.78892448]
[1758081825039,0.7093,4501.7,4501.6,0.5231]
[1758081825528,0.7093,4501.7,4501.6,0.7202]
[1758081829238,0.7093,4501.7,4501.1,0.3224]
[1758081829440,0.4986,4501.6,4501.5,0.3978]
[1758081829634,0.7093,4501.6,4501.5,0.7202]
[1758081830136,0.7093,4501.6,4501.5,0.8406]
[1758081831537,0.7093,4501.6,4501.5,0.3224]
[1758081831937,0.7093,4501.6,4501.3,0.0222]
[1758081831938,0.1112,4501.5,4501.3,0.0222]
[1758081832144,0.9333,4501.4,4501.3,0.0222]
[1758081833546,0.6351,4501.4,4500.5,1.06872448]
[1758081833743,0.2982,4501.3,4500.6,0.22218]
[1758081834044,0.2107,4500.8,4500.7,0.7202]
[1758081834239,0.2107,4500.8,4500.7,0.94236999]
[1758081834544,0.2982,4501.1,4500.7,0.3978]
[1758081834745,0.4943,4501.1,4501.0,0.8371]
[1758081834944,0.1961,4501.1,4501.0,0.8371]
[1758081836440,0.1111,4502.0,4501.0,0.8371]
[1758081836643,0.1961,4501.9,4501.8,0.7161]
[1758081836845,0.9319,4501.9,4501.8,0.7161]
[1758081837538,0.6261,4501.9,4501.8,0.7161]
[1758081838245,0.4201,4501.9,4501.8,0.7161]
[1758081838440,0.224,4501.9,4501.8,0.7161]
[1758081838837,0.317,4502.5,4501.9,0.3099]
[1758081839036,0.9597,4502.5,4502.4,0.7116]
[1758081839340,0.317,4502.4,4502.2,0.3099]
[1758081839539,0.4187,4502.3,4502.2,0.3099]
[1758081839841,0.7357,4502.3,4502.2,0.7116]
[1758081840040,0.2141,4502.3,4502.2,0.7116]
[1758081840346,0.224,4502.5,4502.4,0.7116]
[1758081841047,32.2191,4503.1,4503.0,0.839]
[1758081841244,0.317,4503.4,4503.1,0.3099]
[1758081841439,0.4381,4503.3,4503.1,0.3099]
[1758081841639,0.4187,4503.2,4503.1,0.5066]
[1758081841843,0.4187,4503.2,4503.1,0.7116]
[1758081843146,0.7357,4503.2,4503.1,0.7116]
[1758081843548,0.7357,4503.2,4502.6,0.3099]
[1758081845450,0.7357,4503.2,4503.1,0.1967]
[1758081845646,0.7357,4503.2,4503.1,0.5066]
[1758081845846,0.7357,4503.2,4503.1,0.7116]
[1758081846044,40.8,4503.9,4503.5,0.5291]
[1758081846240,40.8,4503.9,4503.6,0.5066]
[1758081846241,0.9597,4503.7,4503.6,0.5066]
[1758081846445,0.9597,4503.7,4503.6,0.3099]
[1758081846646,0.9597,4503.7,4503.0,0.1274]
[1758081846647,0.2141,4503.3,4503.2,0.3099]
[1758081846853,0.7357,4503.3,4503.2,0.5066]
[1758081847753,0.7357,4503.3,4503.2,0.7116]
[1758081848649,0.4187,4503.3,4503.2,0.7116]
[1758081849049,0.7357,4503.3,4503.2,0.7116]
[1758081850442,0.4187,4502.2,4502.1,0.3099]
[1758081850646,1.68402448,4502.2,4501.6,0.3099]
[1758081851043,1.68402448,4502.2,4501.1,0.3099]
[1758081851455,0.2141,4501.3,4501.2,0.7116]
[1758081852350,0.7357,4501.3,4501.2,0.7116]
[1758081852655,0.7357,4501.3,4501.2,0.5066]
[1758081853056,0.7357,4501.3,4501.2,0.7116]
[1758081853252,0.4187,4501.3,4501.2,0.7116]
[1758081853449,0.2141,4501.3,4501.2,0.7116]
[1758081853845,0.317,4502.4,4501.6,0.3099]
[1758081854046,0.2141,4502.0,4501.9,1.65992448]
[1758081854352,0.224,4502.0,4501.9,1.65992448]
[1758081854557,0.6427,4502.0,4501.9,0.7116]
[1758081854755,0.9597,4502.0,4501.9,0.7116]
[1758081856860,0.9597,4502.0,4501.9,0.5066]
[1758081857053,0.9597,4502.0,4501.6,0.5066]
[1758081857054,0.7357,4501.7,4501.6,0.5066]
[1758081857449,0.4187,4501.7,4501.6,0.7116]
[1758081859262,0.7357,4501.7,4501.6,0.5066]
[1758081860761,0.4187,4501.7,4501.3,0.3099]
[1758081860956,0.2141,4501.4,4501.3,0.7116]
[1758081861154,0.2141,4501.6,4501.5,0.1274]
[1758081861556,0.2141,4501.6,4501.5,0.5291]
[1758081861762,0.4187,4501.6,4501.5,0.839]
[1758081861961,0.7357,4501.6,4501.5,0.839]
[1758081865165,0.4187,4501.6,4501.5,0.839]
[1758081868162,0.4187,4501.6,4501.5,1.78732448]
[1758081869068,0.2141,4501.6,4501.5,1.78732448]
[1758081869766,0.2141,4501.6,4501.5,1.62865006]
[1758081871569,0.4293,4502.0,4501.9,0.4042]
[1758081871771,0.4293,4502.0,4501.9,0.7211]
[1758081871969,0.2053,4502.0,4501.9,0.7211]
[1758081872366,0.224,4502.2,4502.0,0.125]
[1758081872561,0.9218,4502.2,4502.1,0.7211]
[1758081873967,0.4293,4502.2,4502.1,1.51075006]
[1758081875276,0.9218,4502.2,4502.1,1.51075006]
[1758081876571,0.6285,4502.2,4502.1,1.51075006]
[1758081878678,0.9218,4502.2,4502.1,1.51075006]
[1758081879073,0.9218,4502.2,4501.9,0.0222]
[1758081879274,0.9218,4502.2,4502.0,0.3169]
[1758081879674,0.6285,4502.2,4502.1,0.1947]
[1758081879875,1.18169529,4502.2,4502.1,0.5116]
[1758081880077,1.18169529,4502.2,4502.1,0.7211]
[1758081880276,1.47499529,4502.2,4502.1,0.7211]
[1758081881679,0.98249529,4502.2,4502.1,1.51075006]
[1758081881881,0.77719529,4502.2,4502.1,1.51075006]
[1758081882680,0.77719529,4502.2,4501.9,0.0222]
[1758081882681,1.47499529,4502.2,4501.9,0.3391]
[1758081882881,0.4045,4502.0,4501.9,0.2169]
[1758081883085,1.25099529,4502.0,4501.9,0.5338]
[1758081883285,1.25099529,4502.0,4501.9,0.5116]
[1758081883986,1.06879529,4502.0,4501.6,0.3169]
[1758081884286,0.6978,4501.7,4501.6,0.5116]
[1758081884487,0.6978,4501.7,4501.6,0.7211]
[1758081884984,0.2053,4501.7,4501.6,0.7211]
[1758081885483,0.2933,4502.1,4501.6,0.7211]